Cogmind - Beta 13 @@@ ROGUE MODE // 2024.07.06 @ 01:03:25 Player: asta Result: Destroyed by H-61 Shepherd with Heavy Assault Cannon Performance ------------- Evolutions (2) 1000 Regions Visited (4) 800 Robots Destroyed (78) 390 Value Destroyed (1941) 1941 Prototype IDs (5) 100 Alien Tech Used (0) 0 Bonus (573) 573 TOTAL SCORE: 4804 Bonus ------- High Alert Combat Kills 297 Follower Combat Kills 287 Friendly Fire -11 Cogmind --------- Core Integrity 0/550 Matter 88/300 Energy 47/100 System Corruption 0% Temperature Cool (0) Movement Core (50) Location -8/Materials Parts ------- > --- POWER (1) -------- (None) > --- PROPULSION (3) --- (None) > --- UTILITY (4) ------ Improved Heat Sink Machine Analyzer Advanced Targeting Computer > --- WEAPON (3) ------- (None) > --- INVENTORY (5) ---- (None) Peak State ------------ > --- POWER ------------ (None) > --- PROPULSION ------- Aluminum Leg Titanium Leg Aerolev Unit > --- UTILITY ---------- Improved Heat Sink Advanced Visual Processing Unit Advanced Targeting Computer Core Analyzer > --- WEAPON ----------- Gauss Rifle Gauss Rifle Advanced Assault Cannon > --- INVENTORY -------- Machine Analyzer Recoil Stabilizer Heavy Particle Gun [Rating: 34] Favorites ----------- Power Ion Engine Engine Ion Engine Power Core Light Nuclear Core Propulsion Aluminum Leg Leg Aluminum Leg Hover Unit Hover Unit Flight Unit Flight Unit Utility Weapon Shielding Device Improved Heat Sink Processor Advanced Targeting Computer Hackware System Shield Protection Weapon Shielding Weapon Beam Cannon Energy Gun EM Pulse Gun Energy Cannon Beam Cannon Ballistic Gun Assault Rifle Ballistic Cannon Advanced Assault Cannon Impact Weapon Heavy Mace Build | -11 -10 -10 -9 -8 ------- Run | Yrd Mat Min Mat Mat Slots Evolved 4 | . . . 2 2 Power . | . . . . . Propulsion 1 | . . . 1 . Utility 2 | . . . 1 1 Weapon 1 | . . . . 1 Parts Attached 68 | 5 5 9 5 44 Power 11 | 1 2 . 1 7 Engine 7 | 1 1 . . 5 Core 4 | . 1 . 1 2 Reactor . | . . . . . Propulsion 21 | 2 . 1 1 17 Treads . | . . . . . Leg 12 | 2 . 1 . 9 Wheel . | . . . . . Hover 3 | . . . 1 2 Flight 6 | . . . . 6 Utility 22 | . 2 6 2 12 Device 15 | . 2 4 2 7 Storage . | . . . . . Processor 4 | . . . . 4 Hackware 1 | . . . . 1 Protection 2 | . . 2 . . Artifact . | . . . . . Weapon 14 | 2 1 2 1 8 Energy Gun 2 | 1 . . . 1 Energy Cannon 1 | . 1 . . . Ballistic Gun 7 | 1 . 2 1 3 Ballistic Cannon 1 | . . . . 1 Launcher . | . . . . . Special Weapon . | . . . . . Impact Weapon 3 | . . . . 3 Slashing Weapon . | . . . . . Piercing Weapon . | . . . . . Special Melee Weapon . | . . . . . Unidentified Prototypes 4 | . . 2 . 2 Parts Lost 27 | . 2 1 . 24 Power 4 | . 1 . . 3 Propulsion 11 | . . 1 . 10 Utility 6 | . . . . 6 Weapon 6 | . 1 . . 5 Highest Loss Streak 10 | . 2 1 . 10 To Critical Strikes . | . . . . . Average Slot Usage (%) 94 | . 84 99 97 93 Engine 6 | . 6 14 3 1 Core 4 | . 3 . 7 6 Leg 23 | . 28 28 22 18 Hover 1 | . . . 8 2 Flight 1 | . . . . 4 Device 15 | . 18 14 22 13 Processor 7 | . . . . 17 Protection 6 | . . 13 11 1 Energy Cannon 7 | . 8 14 11 1 Ballistic Gun 11 | . 14 14 11 8 Ballistic Cannon 3 | . . . . 7 Impact Weapon 3 | . . . . 7 Naked Turns . | . . . . . Heaviest Build 22 | 9 11 12 14 22 Greatest Support 43 | 20 26 26 26 43 Greatest Overweight (x) 2 | . . . 2 1 Average Overweight (x) . | . . . . . Largest Inventory Capacity 5 | 5 5 5 5 5 Average Capacity 5 | 5 5 5 5 5 Most Carried 5 | . 3 5 5 5 Average Carried 3 | . 1 3 3 3 Final Capacity 5 | 5 5 5 5 5 Final Carried 4 | . 2 3 4 . Class Distribution -------------------- 74% | Mutant 24% | Scavenger-Mutant Dominant Class ---------------- Mutant | -10/Materials Mutant | -10/Mines Mutant | -9/Materials Scavenger-Mutant | -8/Materials Resources | -11 -10 -10 -9 -8 ----------- Run | Yrd Mat Min Mat Mat Matter Collected 1412 | 212 140 103 101 856 Remotely 425 | . . . 101 324 Salvage Created 2749 | . 499 175 286 1789 Parts 167 | . 25 9 17 116 Haulers Intercepted 4 | . 2 . . 2 Recyclers Shooed 3 | . 2 . . 1 Parts Field Recycled . | . . . . . Retrieved Matter . | . . . . . Parts Self-Destructed . | . . . . . Prevented . | . . . . . Kills | -11 -10 -10 -9 -8 ------- Run | Yrd Mat Min Mat Mat Combat Hostiles Destroyed 46 | . 3 2 4 37 Melee 2 | . . . . 2 Guns 17 | . 3 2 1 11 Cannons 25 | . . . 3 22 Classes Destroyed 10 | . 6 1 . 3 Worker 10 | . 3 . . 7 Builder 6 | . 1 . . 5 Hauler 4 | . 2 . . 2 Recycler 7 | . 2 1 1 3 Watcher 5 | . 1 . 1 3 Swarmer 11 | . . . . 11 Grunt 20 | . 3 . 3 14 Sentry 12 | . . 2 1 9 Specialist 2 | . . . . 2 Hunter 1 | . . . . 1 Best Kill Streak 9 | . 6 2 3 9 Combat Bots Only 7 | . 2 2 3 7 Max Kills in Single Turn 5 | . 5 1 1 2 Gunslinging . | . . . . . Exploded . | . . . . . Melee 1 | . . . . 1 Uniques/NPCs Destroyed . | . . . . . Combat | -11 -10 -10 -9 -8 -------- Run | Yrd Mat Min Mat Mat Hostile Shots Fired 279 | . 10 16 20 233 Missed 91 | . 3 2 11 75 Damage Taken 2873 | . 290 212 116 2255 Core 729 | . 80 61 28 560 Absorbed by Shields . | . . . . . Redirected to Shielding 50 | . . . 6 44 Core Remaining (%) 78 | 100 . 43 93 . Volleys Fired 137 | . 19 6 17 95 Largest 3 | . 2 2 2 3 Hottest 104 | . 80 80 83 104 Shots Fired 262 | . 38 12 34 178 Gun 138 | . 27 6 17 88 Cannon 124 | . 11 6 17 90 Launcher . | . . . . . Special . | . . . . . Kinetic 206 | . 19 6 17 164 Thermal 48 | . 11 6 17 14 Explosive . | . . . . . Electromagnetic 8 | . 8 . . . Robot Hit Streak 15 | . 4 6 8 15 Robot Miss Streak 3 | . 3 1 2 3 Penetration Max 1 | . . . . 1 Secondary Targets 1 | . 1 . . . Max Gunslinging Chain 1 | . 1 . . . Shots Hit Robots 182 | . 16 9 22 135 Core Hits 100 | . 18 6 8 68 Critical Kills 1 | . . . . 1 Critical Parts Destroyed 5 | . . . . 5 Critical Strikes 12 | . . . . 12 Destroy 2 | . . . . 2 Blast 6 | . . . . 6 Smash 4 | . . . . 4 Melee Attacks 27 | . . . . 27 Impact 27 | . . . . 27 Slashing . | . . . . . Piercing . | . . . . . Sneak Attacks 9 | . . . . 9 Combat Hostiles . | . . . . . Follow-up Attacks . | . . . . . Damage Inflicted 4773 | . 493 186 353 3741 Guns 1309 | . 128 59 121 1001 Cannons 2150 | . 107 105 230 1708 Explosions 258 | . 258 . . . Melee 1030 | . . . . 1030 Ramming 26 | . . 22 2 2 Kinetic 2748 | . 88 59 121 2480 Thermal 726 | . 162 105 230 229 Explosive . | . . . . . Electromagnetic 243 | . 243 . . . Impact 1030 | . . . . 1030 Slashing . | . . . . . Piercing . | . . . . . Highest Corruption . | . . . . . Average Corruption . | . . . . . Corruption Purged . | . . . . . Corruption Blocked . | . . . . . Overload Shots . | . . . . . Overflow Damage 446 | . 7 . . 439 Projectiles 29 | . . . . 29 Explosions 7 | . 7 . . . Melee 410 | . . . . 410 Knockbacks 12 | . . . . 12 Impact 1 | . . . . 1 Kinetic 10 | . . . . 10 Secondary 1 | . . . . 1 Self-Inflicted Damage 200 | . 199 . . 1 Shots 4 | . 4 . . . Rammed 1 | . . . . 1 Targets Rammed 9 | . . 6 2 1 Kicked 8 | . . 6 2 . Crushed . | . . . . . Highest Temperature 180 | . 33 19 107 180 Average Temperature 40 | . 22 10 31 47 Received Heat Transfer 834 | . 54 81 60 639 Siege Activations . | . . . . . Robots Corrupted . | . . . . . Combat Hostiles . | . . . . . Parts Fried 10 | . . . . 10 Impact Corruptions 12 | . . . . 12 Robots Melted . | . . . . . Combat Hostiles . | . . . . . Parts Melted . | . . . . . Heat Transferred 1506 | . 322 222 481 481 Parts Sabotaged . | . . . . . Parts Stolen . | . . . . . Parts Stripped . | . . . . . Power Chain Reactions 2 | . 2 . . . Alert | -11 -10 -10 -9 -8 ------- Run | Yrd Mat Min Mat Mat Peak Influence 867 | . 155 50 489 867 Initial 206 | . . . . 206 Average 246 | . 94 18 259 482 Maximum Alert Level 3 | . . . 2 3 Low Security (%) 51 | 100 100 100 26 . Level 1 18 | . . . 59 28 Level 2 23 | . . . 14 54 Level 3 6 | . . . . 15 Level 4 . | . . . . . Level 5 . | . . . . . High Security . | . . . . . Max Security . | . . . . . Squads Dispatched 16 | . 1 . 3 12 Investigation 5 | . 1 . 2 2 Extermination . | . . . . . Reinforcement 6 | . . . 1 5 Assault 2 | . . . . 2 Garrison 3 | . . . . 3 Intercept . | . . . . . Searches Triggered . | . . . . . Construction Impeded 2 | . . . 1 1 Haulers Reinforced . | . . . . . Active Scanning Responses . | . . . . . Cargo Convoy Interrupts . | . . . . . Stealth | -11 -10 -10 -9 -8 --------- Run | Yrd Mat Min Mat Mat Distress Signals 3 | . . . 2 1 Communications Jammed . | . . . . . Distress Signals . | . . . . . Times Spotted 69 | . 4 2 13 50 Peak Tracking Total 7 | . 2 2 3 7 Tactical Retreats 2 | . . . . 2 Traps | -11 -10 -10 -9 -8 ------- Run | Yrd Mat Min Mat Mat Traps Triggered 8 | . 4 . 1 3 Indirectly 3 | . 3 . . . Trap Hack Attempts . | . . . . . Triggered . | . . . . . Disarmed . | . . . . . Reprogrammed . | . . . . . Reused . | . . . . . Traps Extracted . | . . . . . Installed . | . . . . . Triggered . | . . . . . Machines | -11 -10 -10 -9 -8 ---------- Run | Yrd Mat Min Mat Mat Machines Disabled 5 | . 2 1 . 2 Max in Single Turn 2 | . 2 1 . 1 Machines Repaired . | . . . . . Machines Dismantled . | . . . . . Machines Sabotaged . | . . . . . Overloaded Fab Kills . | . . . . . Hacking | -11 -10 -10 -9 -8 --------- Run | Yrd Mat Min Mat Mat Machines Accessed 11 | . 2 1 3 5 Terminals 4 | . 1 . 1 2 Fabricators . | . . . . . Repair Stations . | . . . . . Recycling Units 4 | . 1 . 1 2 Scanalyzers 1 | . . . 1 . Garrison Access 1 | . . . . 1 Total Hacks 31 | . 7 1 5 18 Successful 17 | . 3 1 3 10 Failed 14 | . 4 . 2 8 Catastrophic 2 | . . . . 2 Database Lockouts . | . . . . . Manual . | . . . . . Terminals 15 | . 2 . 3 10 Fabricators . | . . . . . Repair Stations . | . . . . . Recycling Units 11 | . 5 . 1 5 Scanalyzers 1 | . . . 1 . Garrison Access 3 | . . . . 3 Terminal Hacks 6 | . . 1 1 4 Record 2 | . . . 1 1 Open Door 1 | . . 1 . . Repair Station Index 1 | . . . . 1 Alert Level 1 | . . . . 1 Zone Layout 1 | . . . . 1 Fabricator Hacks . | . . . . . Repair Station Hacks . | . . . . . Recycling Unit Hacks 9 | . 3 . 1 5 Process 2 | . 1 . . 1 Report Inventory 6 | . 2 . 1 3 Retrieve Matter 1 | . . . . 1 Scanalyzer 1 | . . . 1 . Insert Component 1 | . . . 1 . Garrison Access Hacks 1 | . . . . 1 Unlock Access 1 | . . . . 1 Unauthorized Hacks . | . . . . . Terminals . | . . . . . Fabricators . | . . . . . Repair Stations . | . . . . . Recycling Units . | . . . . . Scanalyzers . | . . . . . Garrison Access . | . . . . . Data Cores Recovered . | . . . . . Used . | . . . . . Hacking Detections 8 | . 2 . 2 4 Full Trace Events 2 | . . . 1 1 Feedback Events . | . . . . . Feedback Blocked . | . . . . . Robot Schematics Acquired . | . . . . . Robots Built . | . . . . . Authchips . | . . . . . Time . | . . . . . Total Robot Build Rating . | . . . . . Part Schematics Acquired . | . . . . . Parts Built . | . . . . . Authchips . | . . . . . Time . | . . . . . Total Part Build Rating . | . . . . . Parts Repaired . | . . . . . Time . | . . . . . Parts Recycled . | . . . . . Recycled Matter 67 | . 12 . . 55 Retrieved Matter 55 | . . . . 55 Retrieved Components . | . . . . . Parts Scanalyzed . | . . . . . Part Schematics Acquired . | . . . . . Parts Damaged . | . . . . . Bothacking | -11 -10 -10 -9 -8 ------------ Run | Yrd Mat Min Mat Mat Used RIF Installer . | . . . . . Robots Hacked . | . . . . . Non-combat . | . . . . . Combat . | . . . . . Robot Hacks Applied . | . . . . . Relay Couplers Released . | . . . . . Fabnet Peak Effective % . | . . . . . Robots Rewired . | . . . . . Allies Hacked . | . . . . . Hacks Repelled . | . . . . . Allies | -11 -10 -10 -9 -8 -------- Run | Yrd Mat Min Mat Mat Total Allies 3 | . . 3 . . Largest Group 3 | . . 3 3 1 Highest-Rated Group 40 | . . 40 40 16 Highest-Rated Ally 16 | . . 16 16 16 Total Orders 9 | . . 9 . . ROAM 3 | . . 3 . . FOLLOW 3 | . . 3 . . GUARD 2 | . . 2 . . AID 1 | . . 1 . . Ally Attacks 39 | . . . 38 1 Total Damage 465 | . . . 448 17 Kills 13 | . . . 13 . Allies Corrupted . | . . . . . Allies Melted . | . . . . . Intel | -11 -10 -10 -9 -8 ------- Run | Yrd Mat Min Mat Mat Robot Analysis Total . | . . . . . Derelict Logs Recovered 1 | . . 1 . . Drone Launches . | . . . . . Drone Recoveries . | . . . . . Exploration | -11 -10 -10 -9 -8 ------------- Run | Yrd Mat Min Mat Mat Turns Passed 3056 | 49 464 951 350 1242 Spaces Moved 2181 | 33 323 747 231 847 Core 5 | 4 . . . 1 Treads . | . . . . . Legs 1870 | 29 323 747 227 544 Wheels . | . . . . . Hover 4 | . . . 4 . Flight 302 | . . . . 302 Fastest Speed 34 | 50 120 120 120 34 Average Speed 109 | 111 120 120 121 92 Slowest Speed 200 | 120 120 120 200 190 Overloaded Moves . | . . . . . Propulsion Burnouts . | . . . . . Robots Hopped 3 | . . . . 3 Cave-ins Triggered . | . . . . . Exploration Rate (%) 46 | 3 54 93 23 57 Regions Visited 4 Branch Regions 1 Pre-discovered Areas . | . . . . . Known Exits Taken 1 | . . . 1 . Unknown Exits Taken 3 | 1 1 1 . . Scrap Searched 2 | . . 2 . . Spaces Dug 9 | . . . . 9 Terrain Destroyed 33 | . 7 . . 26 Melee 9 | . . . . 9 Projectile 17 | . . . . 17 AOE 7 | . 7 . . . Terrain Rammed . | . . . . . Walls Destroyed . | . . . . . Machines Disabled . | . . . . . Actions | -11 -10 -10 -9 -8 --------- Run | Yrd Mat Min Mat Mat Total 2553 | 42 362 789 265 1095 Wait 36 | 5 8 8 3 12 Move 2171 | 32 322 746 230 841 Hop 3 | . . . . 3 Pick Up 61 | . 6 8 5 42 Fast Attach 12 | 5 1 . 1 5 Attach 36 | . 4 4 1 27 Detach 2 | . 1 . . 1 Swap 20 | . . 5 3 12 Drop 39 | . 1 6 3 29 Fire 137 | . 19 6 17 95 Melee 27 | . . . . 27 Ram 1 | . . . . 1 Kick 8 | . . 6 2 . Crush . | . . . . . Escape Stasis . | . . . . . Rewire . | . . . . . Trap . | . . . . . Miscellaneous . | . . . . . Route ------- -11/Scrapyard -10/Materials (discovered 2 exits: *Mat / *Min) -10/Mines (discovered 2 exits: *Mat x2) -9/Materials (discovered 2 exits: *Mat / Min) -8/Materials (discovered 1 exit: Gar) History --------- Turn | Location | Event 9 | -11/Scrapyard | Discovered new exit (range 16) 50 | -11/Scrapyard | Entered Materials 224 | -10/Materials | Discovered new exit (range 15) 311 | -10/Materials | Build established: Mutant 393 | -10/Materials | Discovered new exit (range 12) 514 | -10/Materials | Entered Mines 527 | -10/Mines | Core integrity fell below 50% 617 | -10/Mines | Assisted by bots powering up and referring to "LRC-V3" 653 | -10/Mines | Found a damaged Exp. Sensor Array with a note attached 655 | -10/Mines | Found Prototype Device 721 | -10/Mines | Discovered new exit (range 10) 914 | -10/Mines | Discovered new exit (range 12) 949 | -10/Mines | Found the Drone Emporium 957 | -10/Mines | Found Prototype Device 958 | -10/Mines | Identified Exp. Sensor Array 960 | -10/Mines | Identified Sensor Drone Bay 1313 | -10/Mines | Learned 8 Materials zone layouts 1465 | -10/Mines | Entered Materials 1465 | -9/Materials | Accompanied by 3 allies 1465 | -9/Materials | Evolved 2 slots: Propulsion x1, Utility x1 1466 | -9/Materials | Identified exit to Mines 1466 | -9/Materials | Identified exit to Materials 1815 | -9/Materials | Entered another Materials area 1815 | -8/Materials | Accompanied by 1 ally 1815 | -8/Materials | Evolved 2 slots: Utility x1, Weapon x1 1937 | -8/Materials | Garrison activated, responded to threat 2002 | -8/Materials | Lost 3 parts (2n1u) 2165 | -8/Materials | Identified exit to Garrison 2692 | -8/Materials | Build established: Scavenger-Mutant 2846 | -8/Materials | Destroyed 7 combat bots 2915 | -8/Materials | Lost 3 parts (2n1w) 3010 | -8/Materials | Core integrity fell below 50% 3015 | -8/Materials | First assault squad dispatched 3051 | -8/Materials | Core integrity fell below 20% 3057 | -8/Materials | Destroyed by H-61 Shepherd with Heavy Assault Cannon Last Messages --------------- Slug penetrates H-61 Shepherd. H-61 Shepherd calls for reinforcements. ALERT: Hostile activity reported, dispatching reinforcements to area. Core Analyzer destroyed. Gauss Rifle blasted off. K-01 Serf collects debris. Identified Hvy. Particle Gun. Hvy. Particle Gun destroyed. K-01 Serf collects debris. Aerolev Unit destroyed. Recoil Stabilizer destroyed. Critical hit (Blast). Slammed into H-61 Shepherd. Destabilizing: System interference. Machine Analyzer temporarily disabled. Adv. Targeting Computer temporarily disabled. Penetrated by Slug. Adv. Visual Processing Unit destroyed. Critical hit (Blast). Map ----- +----------------------------------------------------+ | | | | | | | ?????????????????????????????????????????????????? | | ?????????????????????????????????????????????????? | | ?????????????????????????????????????????????????? | | ?????????????????????????????????????????????????? | | ?????????????????????????????????????????????????? | | ?????????????????????????????????????????????????? | | ?????????????????????????????????????????????????? | | ?????????????????????????????????????????????????? | | ?????????????????????????????????????????????????? | | ?????????????????????????????????????????????????? | | ?????????????????????????????????????????????????? | | ?????????????????????????????????????????????????? | | ?????????????????????????????????????????????????? | | ?????????????????????????????????????????????????? | | ?????????????????????????????????????????????????? | | ??????????????????????#######????????????????????? | | ??????????????????????# #????????????????????? | | ??????????????????????#"" #????#???????????????? | | ??????????????????????#"T % #??? #???????????????? | | ??????????????????????#""%[ #?? #???????????????? | | ?????????????????"T"??#*ss%k## #???????????????? | | ??????????????????????#=%H[!%# ##??????????????? | | ????????###+######+#####[@### #########??????? | | ????? !|%%[ / ????? | | ????? ==!%= ????? | | #???? %![% ????? | | # ?????######### ########+### ###+#####??????? | | # ????????#####/######= %!#? #??????????????? | | # ???????# ##!%""#?? #?????????????? | | # ######## T ##=%""#???==//#?????????????? | | # # """ ## T"#????=//#?????????????? | | # + """ ## ""#?????###?????????????? | | # # """ ## ""#?????????????????????? | | #######+## # ## #?????????????????????? | | ###!!* # # ## #?????????????????????? | | ##=!! ! # # ## =#?????????????????????? | | + +!!=% # #################?????????????????????? | | ###=*=* !# #?????## #?????????????????????????? | | ###%!%== # #?????# #####?????????????????????????? | | ###=%%!% # #?????###?????????????????????????????? | | #?##+##### #?????????????????????????????????????? | | ???# #??## #?????????????????????????????????????? | | ???# ##??# #?????????????????????????????????????? | | ???# #???# #?????????????????????????????????????? | | ?###[#???# #################?????????????????????? | | ##!#*##### = # #?????????????????????? | | * *===[ = = ! # #?????????????????????? | +----------------------------------------------------+ Best States ------------- Heat Dissipation 45 Energy Generation 14 Energy Capacity 250 Matter Stores 300 Matter Capacity 300 Sight Range 20 Robot Scan Range 20 Terrain Scan Density 10 Additional Mass Support 6 Weapon Shielding 33 Evasion (%) 63 Targeting Accuracy 8 Core Analysis 6 Defensive Hacking 10 Item Schematics ----------------- None Robot Schematics ------------------ None Fabricated ------------ Nothing Alien Tech Used ----------------- None Achievements -------------- Loot Pinata Please Form A Line Significant Disruption Troublemaker Use The Force Challenges ------------ None Game ------ Seed SigixVariableChip Manual? 0 Play Time 01:00:00 Cumulative 2.7 hours Start 2024.07.05 @ 16:46:26 End 2024.07.06 @ 01:03:25 Sessions 3 Manual Loads 0 Difficulty Rogue Special Mode None Game No. 4 Rogue 2 Adventurer 2 Explorer 0 Win Type - Total 0 Types 0/0/0/0/0/0/0/0/0 Lore% 6 Gallery% 7 Achievement% 8 Wizard Run 0 Options --------- Layout 1 ASCII 0 Keyboard 0 Movement Mouse Keybinds 0 Fullscreen 1 Font 32/SmallcapsGlow Map View 50x40 Zoom Use 0% Tactical HUD 0 Map Filters NONE Filters NONE Steam 1 RUN: 5e99b2c9-844b-4e42-8bd0-c09fdfbfce92